[Event "Goteborg Open 2018"]
[Site "Molnlycke kulturhus, Biblioteksgatan 2, Molnlycke, Sweden"]
[Date "2018.08.17"]
[Round "2.8"]
[White "Johansson, Roy"]
[Black "Eriksson, Kristian"]
[Result "0-1"]
[TimeControl "15 minutes + 5 seconds per move from move one (Round 1 - 4) / 90 minutes + 30 seconds per move from move one (Round 5 - 8)"]
[WhiteFideId "1745972"]
[BlackFideId "1705172"]
[WhiteElo "1889"]
[BlackElo "2097"]

1. d4 {[%clk 00:15:02]} {[%emt 00:00:02]} e6 {[%clk 00:15:02]} {[%emt
00:00:03]} 2. Bf4 {[%clk 00:15:05]} {[%emt 00:00:02]} f5 {[%clk 00:14:59]}
{[%emt 00:00:08]} 3. e3 {[%clk 00:15:08]} {[%emt 00:00:02]} Nf6 {[%clk
00:15:01]} {[%emt 00:00:02]} 4. Nf3 {[%clk 00:15:10]} {[%emt 00:00:03]} d6
{[%clk 00:15:00]} {[%emt 00:00:06]} 5. h3 {[%clk 00:15:09]} {[%emt 00:00:07]}
Be7 {[%clk 00:14:58]} {[%emt 00:00:06]} 6. Be2 {[%clk 00:15:12]} {[%emt
00:00:02]} O-O {[%clk 00:14:56]} {[%emt 00:00:08]} 7. O-O {[%clk 00:15:14]}
{[%emt 00:00:02]} Nc6 {[%clk 00:13:57]} {[%emt 00:01:05]} 8. c4 {[%clk
00:15:12]} {[%emt 00:00:08]} a5 {[%clk 00:13:19]} {[%emt 00:00:42]} 9. Nc3
{[%clk 00:15:02]} {[%emt 00:00:15]} Qe8 {[%clk 00:13:02]} {[%emt 00:00:22]} 10.
Nb5 {[%clk 00:14:25]} {[%emt 00:00:42]} Bd8 {[%clk 00:13:04]} {[%emt 00:00:04]}
11. Bh2 {[%clk 00:14:20]} {[%emt 00:00:09]} e5 {[%clk 00:12:45]} {[%emt
00:00:24]} 12. c5 {[%clk 00:12:30]} {[%emt 00:01:55]} Ne4 {[%clk 00:11:36]}
{[%emt 00:01:13]} 13. cxd6 {[%clk 00:10:49]} {[%emt 00:01:48]} cxd6 {[%clk
00:11:37]} {[%emt 00:00:03]} 14. Bc4+ {[%clk 00:10:10]} {[%emt 00:00:44]} Kh8
{[%clk 00:11:28]} {[%emt 00:00:13]} 15. dxe5 {[%clk 00:09:39]} {[%emt
00:00:36]} dxe5 {[%clk 00:10:57]} {[%emt 00:00:36]} 16. Bd5 {[%clk 00:08:58]}
{[%emt 00:00:47]} Nb4 {[%clk 00:09:35]} {[%emt 00:01:26]} 17. Bc4 {[%clk
00:08:23]} {[%emt 00:00:40]} Nc6 {[%clk 00:07:36]} {[%emt 00:02:05]} 18. a3
{[%clk 00:07:43]} {[%emt 00:00:45]} Be6 {[%clk 00:07:11]} {[%emt 00:00:29]} 19.
Qb3 {[%clk 00:07:27]} {[%emt 00:00:20]} a4 {[%clk 00:06:54]} {[%emt 00:00:22]}
20. Qa2 {[%clk 00:07:25]} {[%emt 00:00:07]} Nc5 {[%clk 00:06:12]} {[%emt
00:00:47]} 21. Bxe6 {[%clk 00:07:05]} {[%emt 00:00:25]} Nxe6 {[%clk 00:05:58]}
{[%emt 00:00:19]} 22. Nxe5 {[%clk 00:06:32]} {[%emt 00:00:39]} Nxe5 {[%clk
00:05:53]} {[%emt 00:00:10]} 23. Bxe5 {[%clk 00:06:35]} {[%emt 00:00:02]} Qxb5
{[%clk 00:05:48]} {[%emt 00:00:10]} 24. Qxe6 {[%clk 00:06:27]} {[%emt
00:00:12]} Re8 {[%clk 00:05:34]} {[%emt 00:00:19]} 25. Qxf5 {[%clk 00:05:43]}
{[%emt 00:00:50]} Qxe5 {[%clk 00:05:32]} {[%emt 00:00:07]} 26. Qf3 {[%clk
00:05:45]} {[%emt 00:00:02]} Bf6 {[%clk 00:05:17]} {[%emt 00:00:20]} 27. Qxb7
{[%clk 00:05:46]} {[%emt 00:00:05]} Qxb2 {[%clk 00:05:13]} {[%emt 00:00:09]} 28.
Rfb1 {[%clk 00:05:36]} {[%emt 00:00:13]} 0-1

[Event "Goteborg Open 2018"]
[Site "Molnlycke kulturhus, Biblioteksgatan 2, Molnlycke, Sweden"]
[Date "2018.08.17"]
[Round "2.9"]
[White "Rasti, Arvin"]
[Black "Mohammed, Safian Haj"]
[Result "1-0"]
[TimeControl "15 minutes + 5 seconds per move from move one (Round 1 - 4) / 90 minutes + 30 seconds per move from move one (Round 5 - 8)"]
[WhiteFideId "1741160"]
[BlackFideId "1729276"]
[WhiteElo "2091"]
[BlackElo "1807"]

1. d4 {[%clk 00:15:04]} Nf6 {[%clk 00:15:02]} {[%emt 00:00:04]} 2. Bf4 {[%clk
00:15:07]} {[%emt 00:00:02]} g6 {[%clk 00:14:54]} {[%emt 00:00:12]} 3. Nf3
{[%clk 00:15:07]} {[%emt 00:00:05]} Bg7 {[%clk 00:14:58]} {[%emt 00:00:02]} 4.
e3 {[%clk 00:15:10]} {[%emt 00:00:02]} d5 {[%clk 00:14:53]} {[%emt 00:00:09]} 5.
Be2 {[%clk 00:15:11]} {[%emt 00:00:05]} O-O {[%clk 00:14:54]} {[%emt 00:00:04]}
6. Nc3 {[%clk 00:15:08]} {[%emt 00:00:08]} c6 {[%clk 00:14:57]} {[%emt
00:00:02]} 7. Ne5 {[%clk 00:14:57]} {[%emt 00:00:16]} Nbd7 {[%clk 00:14:53]}
{[%emt 00:00:08]} 8. h4 {[%clk 00:14:36]} {[%emt 00:00:27]} h5 {[%clk
00:14:40]} {[%emt 00:00:18]} 9. Qd2 {[%clk 00:12:51]} {[%emt 00:01:51]} Nxe5
{[%clk 00:14:30]} {[%emt 00:00:15]} 10. Bxe5 {[%clk 00:12:49]} {[%emt
00:00:07]} b5 {[%clk 00:13:07]} {[%emt 00:01:26]} 11. Bxf6 {[%clk 00:11:12]}
{[%emt 00:01:43]} exf6 {[%clk 00:12:55]} {[%emt 00:00:16]} 12. O-O-O {[%clk
00:10:26]} {[%emt 00:00:52]} a5 {[%clk 00:12:46]} {[%emt 00:00:14]} 13. g4
{[%clk 00:09:03]} {[%emt 00:01:29]} Bxg4 {[%clk 00:12:12]} {[%emt 00:00:38]} 14.
Bxg4 {[%clk 00:09:06]} {[%emt 00:00:02]} hxg4 {[%clk 00:12:16]} {[%emt
00:00:01]} 15. h5 {[%clk 00:09:11]} g5 {[%clk 00:12:00]} {[%emt 00:00:21]} 16.
h6 {[%clk 00:09:09]} {[%emt 00:00:07]} Bh8 {[%clk 00:12:03]} {[%emt 00:00:01]}
17. Qd3 {[%clk 00:08:59]} {[%emt 00:00:16]} Qd7 {[%clk 00:11:57]} {[%emt
00:00:11]} 18. Ne2 {[%clk 00:08:55]} {[%emt 00:00:10]} Rfe8 {[%clk 00:10:40]}
{[%emt 00:01:21]} 19. Ng3 {[%clk 00:08:53]} {[%emt 00:00:08]} a4 {[%clk
00:10:32]} {[%emt 00:00:14]} 20. Nf5 {[%clk 00:07:28]} {[%emt 00:01:30]} Re4
{[%clk 00:09:59]} {[%emt 00:00:37]} 21. h7+ {[%clk 00:07:26]} {[%emt 00:00:07]}
Kf8 {[%clk 00:10:01]} {[%emt 00:00:02]} 22. Qa3+ {[%clk 00:07:28]} {[%emt
00:00:04]} Ke8 {[%clk 00:09:41]} {[%emt 00:00:24]} 23. Nd6+ {[%clk 00:07:30]}
{[%emt 00:00:04]} Kd8 {[%clk 00:09:40]} {[%emt 00:00:05]} 24. Nxe4 {[%clk
00:07:33]} {[%emt 00:00:04]} dxe4 {[%clk 00:09:42]} {[%emt 00:00:03]} 25. Qf8+
{[%clk 00:07:32]} {[%emt 00:00:05]} Qe8 {[%clk 00:09:41]} {[%emt 00:00:07]} 26.
Qxe8+ {[%clk 00:07:20]} {[%emt 00:00:17]} Kxe8 {[%clk 00:09:44]} {[%emt
00:00:02]} 27. d5 {[%clk 00:07:22]} {[%emt 00:00:04]} c5 {[%clk 00:09:46]}
{[%emt 00:00:02]} 28. d6 {[%clk 00:07:13]} {[%emt 00:00:15]} Kd7 {[%clk
00:09:44]} {[%emt 00:00:06]} 29. Rd5 {[%clk 00:07:02]} {[%emt 00:00:15]} a3
{[%clk 00:09:37]} {[%emt 00:00:12]} 30. b3 {[%clk 00:06:52]} {[%emt 00:00:15]}
c4 {[%clk 00:09:39]} {[%emt 00:00:03]} 31. Rxb5 {[%clk 00:06:28]} {[%emt
00:00:29]} cxb3 {[%clk 00:09:43]} {[%emt 00:00:02]} 32. Rxb3 {[%clk 00:06:23]}
{[%emt 00:00:10]} Kxd6 {[%clk 00:09:40]} {[%emt 00:00:08]} 33. Rd1+ {[%clk
00:06:27]} Ke6 {[%clk 00:09:32]} {[%emt 00:00:13]} 34. Rb5 {[%clk 00:05:59]}
{[%emt 00:00:34]} f5 {[%clk 00:09:24]} {[%emt 00:00:12]} 35. Rdd5 {[%clk
00:05:52]} {[%emt 00:00:12]} Bb2+ {[%clk 00:09:26]} {[%emt 00:00:03]} 36. Kd1
{[%clk 00:05:29]} {[%emt 00:00:27]} Rh8 {[%clk 00:09:09]} {[%emt 00:00:23]} 37.
Rxf5 {[%clk 00:05:25]} {[%emt 00:00:10]} Rxh7 {[%clk 00:09:11]} {[%emt
00:00:02]} 38. Rxg5 {[%clk 00:05:25]} {[%emt 00:00:05]} Rh1+ {[%clk 00:08:56]}
{[%emt 00:00:20]} 39. Kd2 {[%clk 00:05:26]} {[%emt 00:00:05]} Rg1 {[%clk
00:08:13]} {[%emt 00:00:46]} 40. Rb6+ {[%clk 00:05:08]} {[%emt 00:00:24]} Ke7
{[%clk 00:08:13]} {[%emt 00:00:07]} 41. Rb4 {[%clk 00:04:56]} {[%emt 00:00:14]}
Kf6 {[%clk 00:08:07]} {[%emt 00:00:13]} 42. Rgb5 {[%clk 00:04:36]} {[%emt
00:00:23]} Ra1 {[%clk 00:07:52]} {[%emt 00:00:22]} 43. Rxe4 {[%clk 00:04:15]}
{[%emt 00:00:27]} Rxa2 {[%clk 00:07:53]} {[%emt 00:00:04]} 44. Rf4+ {[%clk
00:04:14]} {[%emt 00:00:06]} Ke6 {[%clk 00:07:38]} {[%emt 00:00:20]} 45. Rxg4
{[%clk 00:04:16]} {[%emt 00:00:03]} Ra1 {[%clk 00:07:27]} {[%emt 00:00:16]} 46.
Rgb4 {[%clk 00:04:13]} {[%emt 00:00:07]} Rb1 {[%clk 00:03:13]} {[%emt
00:04:20]} 47. Ra5 {[%clk 00:03:14]} {[%emt 00:01:05]} Bc1+ {[%clk 00:02:38]}
{[%emt 00:00:39]} 48. Kc3 {[%clk 00:03:15]} {[%emt 00:00:04]} Rxb4 {[%clk
00:02:06]} {[%emt 00:00:36]} 49. Kxb4 {[%clk 00:03:19]} {[%emt 00:00:02]} Bd2+
{[%clk 00:02:10]} 50. c3 {[%clk 00:03:23]} Bc1 {[%clk 00:02:02]} {[%emt
00:00:13]} 51. Rxa3 {[%emt 00:00:09]} 1-0

[Event "Goteborg Open 2018"]
[Site "Molnlycke kulturhus, Biblioteksgatan 2, Molnlycke, Sweden"]
[Date "2018.08.17"]
[Round "2.10"]
[White "Henningsson, Eddy"]
[Black "Kardell, Mathias"]
[Result "0-1"]
[TimeControl "15 minutes + 5 seconds per move from move one (Round 1 - 4) / 90 minutes + 30 seconds per move from move one (Round 5 - 8)"]
[WhiteFideId "1753843"]
[BlackFideId "1710109"]
[WhiteElo "1791"]
[BlackElo "2084"]

1. d4 {[%clk 00:15:01]} {[%emt 00:00:03]} d5 {[%clk 00:15:02]} {[%emt
00:00:04]} 2. Bf4 {[%clk 00:15:04]} {[%emt 00:00:02]} c6 {[%clk 00:14:57]}
{[%emt 00:00:11]} 3. e3 {[%clk 00:15:07]} {[%emt 00:00:02]} Nf6 {[%clk
00:14:52]} {[%emt 00:00:10]} 4. Bd3 {[%clk 00:15:10]} {[%emt 00:00:02]} Bg4
{[%clk 00:14:34]} {[%emt 00:00:22]} 5. Nf3 {[%clk 00:15:01]} {[%emt 00:00:14]}
e6 {[%clk 00:14:24]} {[%emt 00:00:16]} 6. Nbd2 {[%clk 00:15:03]} {[%emt
00:00:02]} Be7 {[%clk 00:14:20]} {[%emt 00:00:09]} 7. h3 {[%clk 00:15:02]}
{[%emt 00:00:06]} Bh5 {[%clk 00:14:08]} {[%emt 00:00:17]} 8. g4 {[%clk
00:15:00]} {[%emt 00:00:07]} Bg6 {[%clk 00:14:10]} {[%emt 00:00:02]} 9. Qe2
{[%clk 00:15:03]} {[%emt 00:00:02]} Qb6 {[%clk 00:13:44]} {[%emt 00:00:32]} 10.
O-O-O {[%clk 00:14:56]} {[%emt 00:00:11]} Nbd7 {[%clk 00:12:34]} {[%emt
00:01:16]} 11. Ne5 {[%clk 00:14:52]} {[%emt 00:00:08]} Bxd3 {[%clk 00:12:17]}
{[%emt 00:00:23]} 12. Qxd3 {[%clk 00:14:36]} {[%emt 00:00:21]} c5 {[%clk
00:09:18]} {[%emt 00:03:04]} 13. g5 {[%clk 00:13:48]} {[%emt 00:00:52]} Nxe5
{[%clk 00:09:02]} {[%emt 00:00:21]} 14. Bxe5 {[%clk 00:13:50]} {[%emt
00:00:03]} c4 {[%clk 00:08:48]} {[%emt 00:00:19]} 15. Qe2 {[%clk 00:13:40]}
{[%emt 00:00:14]} c3 {[%clk 00:08:36]} {[%emt 00:00:17]} 16. Nb3 {[%clk
00:13:29]} {[%emt 00:00:16]} Ne4 {[%clk 00:06:41]} {[%emt 00:02:00]} 17. Bxg7
{[%clk 00:12:01]} {[%emt 00:01:32]} cxb2+ {[%clk 00:06:35]} {[%emt 00:00:13]}
18. Kxb2 {[%clk 00:11:53]} {[%emt 00:00:12]} Qb4 {[%clk 00:04:26]} {[%emt
00:02:14]} 19. Qd3 {[%clk 00:10:08]} {[%emt 00:01:49]} Rg8 {[%clk 00:02:53]}
{[%emt 00:01:39]} 20. Bf6 {[%clk 00:09:08]} {[%emt 00:01:05]} Qa3+ {[%clk
00:02:39]} {[%emt 00:00:19]} 21. Ka1 {[%clk 00:09:11]} {[%emt 00:00:02]} Bb4
{[%clk 00:02:25]} {[%emt 00:00:19]} 22. Qb5+ {[%clk 00:04:56]} {[%emt
00:04:20]} Kf8 {[%clk 00:02:10]} {[%emt 00:00:19]} 23. Rd3 {[%clk 00:04:58]}
{[%emt 00:00:03]} Nc3 {[%clk 00:01:36]} {[%emt 00:00:39]} 24. Nc1 {[%clk
00:04:58]} {[%emt 00:00:05]} Nxb5 {[%clk 00:01:17]} {[%emt 00:00:25]} 25. Rxa3
{[%clk 00:05:02]} {[%emt 00:00:01]} Nxa3 {[%clk 00:01:12]} {[%emt 00:00:10]} 26.
Kb2 {[%clk 00:05:04]} {[%emt 00:00:03]} Nb5 {[%clk 00:01:10]} {[%emt 00:00:06]}
27. Nd3 {[%clk 00:05:05]} {[%emt 00:00:04]} Ba3+ {[%clk 00:01:07]} {[%emt
00:00:08]} 28. Kb3 {[%clk 00:04:40]} {[%emt 00:00:30]} Be7 {[%clk 00:01:08]}
{[%emt 00:00:03]} 29. Bxe7+ {[%clk 00:04:34]} {[%emt 00:00:11]} Kxe7 {[%clk
00:01:11]} {[%emt 00:00:02]} 30. h4 {[%clk 00:04:38]} {[%emt 00:00:01]} Rac8
{[%clk 00:01:06]} {[%emt 00:00:10]} 31. a4 {[%clk 00:04:27]} {[%emt 00:00:17]}
Nd6 {[%clk 00:01:05]} {[%emt 00:00:06]} 32. f3 {[%clk 00:04:19]} {[%emt
00:00:13]} b6 {[%clk 00:01:04]} {[%emt 00:00:06]} 33. Ne5 {[%clk 00:04:18]}
{[%emt 00:00:06]} Rc7 {[%clk 00:01:00]} {[%emt 00:00:09]} 34. Rh2 {[%clk
00:04:12]} {[%emt 00:00:12]} Rgc8 {[%clk 00:01:02]} {[%emt 00:00:03]} 35. Rg2
{[%clk 00:04:00]} {[%emt 00:00:17]} a5 {[%clk 00:01:02]} {[%emt 00:00:06]} 36.
h5 {[%clk 00:03:54]} {[%emt 00:00:10]} Rc3+ {[%clk 00:01:01]} {[%emt 00:00:06]}
37. Kb2 {[%clk 00:03:57]} {[%emt 00:00:02]} Rxe3 {[%clk 00:00:57]} {[%emt
00:00:08]} 38. g6 {[%clk 00:03:59]} {[%emt 00:00:03]} fxg6 {[%clk 00:00:43]}
{[%emt 00:00:20]} 39. hxg6 {[%clk 00:04:02]} {[%emt 00:00:02]} Nc4+ {[%clk
00:00:30]} {[%emt 00:00:17]} 40. Ka2 {[%clk 00:03:48]} {[%emt 00:00:18]} Nxe5
{[%clk 00:00:33]} {[%emt 00:00:03]} 41. dxe5 {[%clk 00:03:51]} {[%emt
00:00:02]} hxg6 {[%clk 00:00:34]} {[%emt 00:00:04]} 42. Rxg6 {[%clk 00:03:53]}
{[%emt 00:00:03]} Rxe5 {[%clk 00:00:38]} {[%emt 00:00:02]} 43. Rg2 {[%clk
00:03:48]} {[%emt 00:00:09]} Rf5 {[%clk 00:00:42]} {[%emt 00:00:01]} 44. Rf2
{[%clk 00:03:51]} {[%emt 00:00:02]} Rc3 {[%clk 00:00:45]} {[%emt 00:00:02]} 45.
Kb2 {[%clk 00:03:54]} {[%emt 00:00:03]} Rfxf3 {[%clk 00:00:49]} {[%emt
00:00:02]} 46. Rh2 {[%clk 00:03:54]} {[%emt 00:00:04]} Rh3 {[%clk 00:00:53]}
{[%emt 00:00:01]} 47. Rg2 {[%clk 00:03:57]} {[%emt 00:00:02]} Rcg3 {[%clk
00:00:57]} 48. Rf2 {[%clk 00:04:01]} {[%emt 00:00:01]} Kd6 {[%clk 00:01:00]}
{[%emt 00:00:02]} 0-1

[Event "Goteborg Open 2018"]
[Site "Molnlycke kulturhus, Biblioteksgatan 2, Molnlycke, Sweden"]
[Date "2018.08.17"]
[Round "3.1"]
[White "Golubka, Petro"]
[Black "Eriksson, Kristian"]
[Result "1-0"]
[TimeControl "15 minutes + 5 seconds per move from move one (Round 1 - 4) / 90 minutes + 30 seconds per move from move one (Round 5 - 8)"]
[WhiteTitle "IM"]
[WhiteFideId "14114224"]
[BlackFideId "1705172"]
[WhiteElo "2478"]
[BlackElo "2097"]

1. d4 {[%clk 00:15:02]} {[%emt 00:00:02]} e6 {[%clk 00:15:03]} {[%emt
00:00:03]} 2. e4 {[%clk 00:15:03]} {[%emt 00:00:04]} d5 {[%clk 00:15:06]}
{[%emt 00:00:02]} 3. Bd3 {[%clk 00:15:06]} {[%emt 00:00:03]} dxe4 {[%clk
00:14:57]} {[%emt 00:00:14]} 4. Bxe4 {[%clk 00:15:10]} {[%emt 00:00:01]} Nf6
{[%clk 00:14:59]} {[%emt 00:00:03]} 5. Bf3 {[%clk 00:15:13]} {[%emt 00:00:01]}
Be7 {[%clk 00:14:53]} {[%emt 00:00:11]} 6. Nc3 {[%clk 00:15:17]} {[%emt
00:00:03]} O-O {[%clk 00:14:43]} {[%emt 00:00:14]} 7. Nge2 {[%clk 00:15:21]}
{[%emt 00:00:01]} c5 {[%clk 00:14:24]} {[%emt 00:00:23]} 8. Be3 {[%clk
00:15:08]} {[%emt 00:00:18]} Nc6 {[%clk 00:13:46]} {[%emt 00:00:42]} 9. dxc5
{[%clk 00:14:40]} {[%emt 00:00:34]} Qa5 {[%clk 00:13:36]} {[%emt 00:00:15]} 10.
Bxc6 {[%clk 00:13:33]} {[%emt 00:01:13]} bxc6 {[%clk 00:13:36]} {[%emt
00:00:04]} 11. Nd4 {[%clk 00:13:24]} {[%emt 00:00:14]} Bd7 {[%clk 00:12:33]}
{[%emt 00:01:07]} 12. Nb3 {[%clk 00:13:20]} {[%emt 00:00:09]} Qc7 {[%clk
00:12:13]} {[%emt 00:00:24]} 13. O-O {[%clk 00:13:00]} {[%emt 00:00:25]} e5
{[%clk 00:11:48]} {[%emt 00:00:30]} 14. Bg5 {[%clk 00:12:45]} {[%emt 00:00:17]}
Rad8 {[%clk 00:11:17]} {[%emt 00:00:39]} 15. Qf3 {[%clk 00:12:29]} {[%emt
00:00:21]} Rfe8 {[%clk 00:10:47]} {[%emt 00:00:36]} 16. h3 {[%clk 00:12:21]}
{[%emt 00:00:12]} Be6 {[%clk 00:10:36]} {[%emt 00:00:16]} 17. Rfe1 {[%clk
00:11:49]} {[%emt 00:00:37]} Nd5 {[%clk 00:09:40]} {[%emt 00:01:01]} 18. Bxe7
{[%clk 00:11:47]} {[%emt 00:00:08]} Rxe7 {[%clk 00:09:35]} {[%emt 00:00:09]} 19.
Rad1 {[%clk 00:11:23]} {[%emt 00:00:29]} Red7 {[%clk 00:09:12]} {[%emt
00:00:27]} 20. Ne4 {[%clk 00:11:07]} {[%emt 00:00:21]} Nb4 {[%clk 00:07:10]}
{[%emt 00:02:07]} 21. Nd6 {[%clk 00:11:02]} {[%emt 00:00:10]} Nxc2 {[%clk
00:06:48]} {[%emt 00:00:28]} 22. Rxe5 {[%clk 00:11:01]} {[%emt 00:00:06]} Nb4
{[%clk 00:05:48]} {[%emt 00:01:04]} 23. Nd4 {[%clk 00:10:36]} {[%emt 00:00:30]}
Bd5 {[%clk 00:05:10]} {[%emt 00:00:44]} 24. Qe2 {[%clk 00:10:17]} {[%emt
00:00:21]} h6 {[%clk 00:03:50]} {[%emt 00:01:28]} 25. a3 {[%clk 00:10:19]}
{[%emt 00:00:04]} Na2 {[%clk 00:03:44]} {[%emt 00:00:10]} 26. Re1 {[%clk
00:10:15]} {[%emt 00:00:09]} Rxd6 {[%clk 00:03:27]} {[%emt 00:00:22]} 27. cxd6
{[%clk 00:10:17]} {[%emt 00:00:03]} Qxd6 {[%clk 00:03:29]} {[%emt 00:00:03]} 28.
Nf5 {[%clk 00:10:06]} {[%emt 00:00:15]} Qf6 {[%clk 00:03:06]} {[%emt 00:00:29]}
29. Ne7+ {[%clk 00:10:04]} {[%emt 00:00:07]} Kh7 {[%clk 00:03:03]} {[%emt
00:00:08]} 30. Nxd5 {[%clk 00:09:53]} {[%emt 00:00:17]} cxd5 {[%clk 00:02:52]}
{[%emt 00:00:16]} 31. Qd3+ {[%clk 00:09:43]} {[%emt 00:00:14]} g6 {[%clk
00:02:53]} {[%emt 00:00:05]} 32. Rxd5 {[%clk 00:09:13]} {[%emt 00:00:36]} Rc8
{[%clk 00:02:47]} {[%emt 00:00:09]} 33. Rd7 {[%clk 00:08:59]} {[%emt 00:00:18]}
Rc1 {[%clk 00:01:48]} {[%emt 00:01:06]} 34. Rxc1 {[%clk 00:08:51]} {[%emt
00:00:13]} Nxc1 {[%clk 00:01:51]} {[%emt 00:00:02]} 35. Qc4 {[%clk 00:08:46]}
{[%emt 00:00:07]} 1-0

[Event "Goteborg Open 2018"]
[Site "Molnlycke kulturhus, Biblioteksgatan 2, Molnlycke, Sweden"]
[Date "2018.08.17"]
[Round "3.2"]
[White "Kardell, Mathias"]
[Black "Gritsak, Orest"]
[Result "0-1"]
[TimeControl "15 minutes + 5 seconds per move from move one (Round 1 - 4) / 90 minutes + 30 seconds per move from move one (Round 5 - 8)"]
[BlackTitle "GM"]
[WhiteFideId "1710109"]
[BlackFideId "14102188"]
[WhiteElo "2084"]
[BlackElo "2464"]

1. e4 {[%clk 00:15:02]} {[%emt 00:00:01]} c5 {[%clk 00:14:58]} {[%emt
00:00:07]} 2. Nf3 {[%clk 00:15:04]} {[%emt 00:00:03]} e6 {[%clk 00:15:01]}
{[%emt 00:00:02]} 3. d4 {[%clk 00:15:06]} {[%emt 00:00:03]} cxd4 {[%clk
00:15:04]} {[%emt 00:00:02]} 4. Nxd4 {[%clk 00:15:09]} {[%emt 00:00:02]} Nc6
{[%clk 00:15:07]} {[%emt 00:00:02]} 5. Nc3 {[%clk 00:14:57]} {[%emt 00:00:17]}
a6 {[%clk 00:15:10]} {[%emt 00:00:02]} 6. Be2 {[%clk 00:14:39]} {[%emt
00:00:22]} Qc7 {[%clk 00:14:47]} {[%emt 00:00:28]} 7. Be3 {[%clk 00:14:04]}
{[%emt 00:00:41]} Nf6 {[%clk 00:14:46]} {[%emt 00:00:06]} 8. f4 {[%clk
00:12:28]} {[%emt 00:01:40]} Bb4 {[%clk 00:13:58]} {[%emt 00:00:53]} 9. Bf3
{[%clk 00:12:01]} {[%emt 00:00:33]} Ne7 {[%clk 00:10:51]} {[%emt 00:03:12]} 10.
Qd3 {[%clk 00:10:27]} {[%emt 00:01:38]} d5 {[%clk 00:10:53]} {[%emt 00:00:03]}
11. e5 {[%clk 00:06:58]} {[%emt 00:03:35]} Ne4 {[%clk 00:10:22]} {[%emt
00:00:36]} 12. Nde2 {[%clk 00:06:23]} {[%emt 00:00:40]} Nxc3 {[%clk 00:09:55]}
{[%emt 00:00:32]} 13. bxc3 {[%clk 00:06:12]} {[%emt 00:00:16]} Ba5 {[%clk
00:09:23]} {[%emt 00:00:37]} 14. O-O {[%clk 00:05:31]} {[%emt 00:00:45]} Bd7
{[%clk 00:09:23]} {[%emt 00:00:05]} 15. Rab1 {[%clk 00:03:05]} {[%emt
00:02:32]} O-O {[%clk 00:08:52]} {[%emt 00:00:36]} 16. Rb3 {[%clk 00:01:08]}
{[%emt 00:02:03]} Bb5 {[%clk 00:08:11]} {[%emt 00:00:45]} 17. Qd2 {[%clk
00:00:59]} {[%emt 00:00:14]} Nf5 {[%clk 00:07:32]} {[%emt 00:00:44]} 18. Bf2
{[%clk 00:01:02]} {[%emt 00:00:03]} Bc4 {[%clk 00:07:10]} {[%emt 00:00:27]} 19.
Rb2 {[%clk 00:01:01]} {[%emt 00:00:06]} b5 {[%clk 00:07:13]} {[%emt 00:00:01]}
20. Rfb1 {[%clk 00:00:47]} {[%emt 00:00:18]} Bxe2 {[%clk 00:07:01]} {[%emt
00:00:17]} 21. Qxe2 {[%clk 00:00:49]} {[%emt 00:00:04]} Bxc3 {[%clk 00:07:04]}
{[%emt 00:00:02]} 22. Rb3 {[%clk 00:00:49]} {[%emt 00:00:05]} Nd4 {[%clk
00:06:34]} {[%emt 00:00:35]} 23. Bxd4 {[%clk 00:00:52]} {[%emt 00:00:02]} Bxd4+
{[%clk 00:06:37]} {[%emt 00:00:01]} 24. Kh1 {[%clk 00:00:56]} {[%emt 00:00:01]}
Rac8 {[%clk 00:06:34]} {[%emt 00:00:08]} 25. Rc1 {[%clk 00:00:45]} {[%emt
00:00:17]} Bc3 {[%clk 00:06:11]} {[%emt 00:00:28]} 26. Qf2 {[%clk 00:00:32]}
{[%emt 00:00:18]} Qc5 {[%clk 00:06:03]} {[%emt 00:00:13]} 27. Qh4 {[%clk
00:00:33]} {[%emt 00:00:03]} Qe3 {[%clk 00:05:46]} {[%emt 00:00:22]} 28. Rf1
{[%clk 00:00:28]} {[%emt 00:00:11]} Rc4 {[%clk 00:05:49]} {[%emt 00:00:03]} 29.
g3 {[%clk 00:00:19]} {[%emt 00:00:14]} Qd2 {[%clk 00:05:37]} {[%emt 00:00:17]}
30. Rbb1 {[%clk 00:00:12]} {[%emt 00:00:11]} Bxe5 {[%clk 00:05:27]} {[%emt
00:00:15]} 31. Qh5 {[%clk 00:00:10]} {[%emt 00:00:07]} Bf6 {[%clk 00:05:22]}
{[%emt 00:00:10]} 32. Rbd1 {[%clk 00:00:08]} {[%emt 00:00:08]} Qxc2 {[%clk
00:05:21]} {[%emt 00:00:06]} 33. Be2 {[%clk 00:00:11]} {[%emt 00:00:01]} Qe4+
{[%clk 00:05:16]} {[%emt 00:00:09]} 34. Bf3 {[%clk 00:00:16]} Qg6 {[%clk
00:05:11]} {[%emt 00:00:10]} 35. Qh3 {[%clk 00:00:19]} {[%emt 00:00:02]} Qc2
{[%clk 00:05:06]} {[%emt 00:00:10]} 36. Rfe1 {[%clk 00:00:11]} {[%emt
00:00:13]} Qf2 {[%clk 00:04:52]} {[%emt 00:00:19]} 37. Be2 {[%clk 00:00:09]}
{[%emt 00:00:07]} Re4 {[%clk 00:04:45]} {[%emt 00:00:12]} 38. Qg4 {[%clk
00:00:06]} {[%emt 00:00:09]} g6 {[%clk 00:04:41]} {[%emt 00:00:09]} 39. h4
{[%emt 00:00:05]} 0-1